[Event "93rd German Championship 2022"]
[Site "Magdeburg"]
[Date "2022.08.14"]
[Round "1.6"]
[White "Tschernatsch, Johannes"]
[Black "Pajeken, Jakob Leon"]
[Result "0-1"]
[ECO "B51"]
[WhiteElo "2296"]
[BlackElo "2434"]
[Annotator "TA"]
[PlyCount "110"]
[EventDate "2022.08.14"]
[EventType "swiss"]
[EventCountry "GER"]
[SourceTitle "playchess.com"]
[Source "ChessBase"]
[SourceQuality "1"]
[TimeControl "40/5400+30:1800+30"]

{[%evp 9,110,29,29,26,20,27,24,38,36,24,29,27,31,26,31,41,33,15,22,6,10,10,10,-14,-12,-21,-12,-23,-31,-24,26,0,5,-34,41,40,31,26,22,15,66,-68,22,-143,-137,-140,-137,-136,-125,-168,-175,-158,-149,-148,-148,-141,-122,-178,-177,-194,69,58,57,-171,-171,-259,-256,-290,-267,-243,-149,-345,-369,-374,-368,-309,-349,-331,-327,-394,-375,-456,-443,-425,-424,-692,-644,-1185,-1197,-1092,-1067,-965,-867,-2092,-1937,-1814,-1713,-1175,-940,-29990,-29991,-29991,-29992]} 1. e4 {[%emt 0:00:03]} c5 {[%emt 0:00:10]} 2. Nf3 {[%emt 0:00:11]} d6 {[%emt 0:00:09]} 3. Bb5+ {[%emt 0:00:50]} Nd7 {[%emt 0:00:05]} 4. a4 {[%emt 0:01:04][%cal Ba2a4,Ba4a5][%mdl 32]} Ngf6 {[%emt 0:01:09]} 5. Nc3 {[%emt 0:00:07]} a6 {[%emt 0:00:54]} 6. Be2 {[%emt 0:00:29] B51: Sicilian: Moscow Variation (3 Bb5+) without 3...Bd7.} g6 {[%emt 0:06:55]} 7. a5 {[%emt 0:01:26]} Bg7 {[%emt 0:00:41]} 8. O-O {[%emt 0:00:19] White has an edge.} O-O {[%emt 0:00:58]} 9. Re1 {[%emt 0:01:25]} b5 {[%emt 0:04:10]} 10. axb6 $1 {[%emt 0:00:10]} Bb7 {[%emt 0:01:00]} 11. d3 {[%emt 0:06:24]} Qxb6 {[%emt 0:09:39] [#]} 12. Nd2 $146 {[%emt 0:01:18]} ({Predecessor:} 12. h3 c4 13. Ra2 cxd3 14. cxd3 Qc7 15. Bf1 e5 16. Qa4 d5 17. Qa5 Qd6 18. b3 {0-1 (54) Plenca,J (2483)-Brkic,A (2593) Vinkovci 2020}) 12... Ne5 {[%emt 0:02:28]} 13. Nf1 {[%emt 0:14:07]} e6 {[%emt 0:04:47]} 14. Bf4 {[%emt 0:11:10]} Nfd7 {[%emt 0:04:56]} 15. Na4 {[%emt 0:09:22]} Qc6 {[%emt 0:08:15]} 16. Qd2 {[%emt 0:07:35]} f5 {[%emt 0:04:04]} 17. Ng3 {[%emt 0:00:56]} Nf7 {[%emt 0:06:35]} 18. Bf3 {[%emt 0:13:16]} Nde5 {[%emt 0:01:40]} 19. Be2 {[%emt 0:00:58]} d5 {[%emt 0:02:40]} (19... Ng4 $142) 20. Qa5 {[%emt 0:01:58]} Rac8 {[%emt 0:03:06]} 21. Bf1 {[%emt 0:02:34]} Ng4 {[%emt 0:09:22]} (21... fxe4 $15 22. dxe4 (22. Nb6 Rce8 $15) 22... Nd7) 22. exd5 {[%emt 0:01:11]} exd5 {[%emt 0:03:10]} 23. c3 {[%emt 0:02:53] Prevents Bd4.} d4 {[%emt 0:04:36]} 24. c4 {[%emt 0:00:41] Against Qb5} Nfe5 {[%emt 0:07:29]} (24... h5 $1 $11 25. b4 cxb4) 25. Bxe5 {[%emt 0:09:08]} ({White should play} 25. Nb6 $1 $14) 25... Nxe5 {[%emt 0:01:07]} (25... Bxe5 $15 26. Nb6 Rb8) 26. Qb6 $2 {[%emt 0:00:23] [#]} ({White should try} 26. b4 $1 $11) 26... Nd7 $1 $36 {[%emt 0:00:50][%mdl 2048] Black has strong initiative.} 27. Qxc6 {[%emt 0:00:39]} Bxc6 {[%emt 0:00:06]} ({And not} 27... Rxc6 28. Ne2 $15 (28. Re7 Rd8 $17)) 28. Ne2 {[%emt 0:01:29]} Bh6 {[%emt 0:02:00] Against Nf4} 29. f4 {[%emt 0:05:03]} Rb8 {[%emt 0:00:17]} 30. Ra3 {[%emt 0:01:08]} Rb4 {[%emt 0:00:33]} 31. Rea1 {[%emt 0:00:50]} g5 {[%emt 0:02:44]} 32. g3 {[%emt 0:01:00]} Re8 {[%emt 0:01:06] Black is more active.} 33. Kf2 {[%emt 0:05:06]} (33. b3 $17 {is a better defense.}) 33... Re3 $19 {[%emt 0:00:54]} 34. Nxc5 {[%emt 0:00:23]} Rxe2+ $2 {[%emt 0:01:33]} ({Don't play} 34... Rxb2 35. Nxd7 Bxd7 36. Rxa6 gxf4 37. Rxh6 $14) (34... Nxc5 $19 35. Nxd4 {[#]} gxf4 $1 36. Nxc6 fxg3+ 37. Kg1 Rxb2) 35. Bxe2 $14 {[%emt 0:00:09]} Nxc5 {[%emt 0:00:03]} 36. Ra5 $2 {[%emt 0:00:38]} (36. Rxa6 $14 {was the only good move.} Nxa6 37. Rxa6) 36... Bf8 $19 {[%emt 0:01:16]} 37. R5a2 {[%emt 0:00:38]} (37. Rxc5 $142 Bxc5 38. Rxa6) 37... g4 {[%emt 0:00:38][%cal Oa6a5]} 38. Bf1 {[%emt 0:00:13]} Rb3 {[%emt 0:01:39]} 39. Rd1 {[%emt 0:00:10]} a5 {[%emt 0:01:02][%cal Ba6a5,Ba5a4][%mdl 32]} 40. Ke1 $2 {[%emt 0:00:44] Now White is beyond hope.} (40. Rxa5 $17 Rxb2+ 41. Kg1) 40... Bf3 {[%emt 0:01:44]} 41. Be2 {[%emt 0:30:52]} Bxe2 {[%emt 0:32:35]} 42. Kxe2 {[%emt 0:00:12]} a4 {[%emt 0:00:06]} 43. Rd2 {[%emt 0:01:09]} Rb7 {[%emt 0:01:35]} 44. Kd1 {[%emt 0:00:00]} Kf7 {[%emt 0:00:00]} 45. Re2 {[%emt 0:00:00]} Nxd3 {[%emt 0:00:00]} 46. Rd2 {[%emt 0:00:00]} Rb3 {[%emt 0:00:00] ...Bb4 is the strong threat.} 47. Rxa4 {[%emt 0:00:00]} (47. c5 $142 Bxc5 48. Rxa4 Nxb2+ 49. Kc2) 47... Nxb2+ {[%emt 0:00:00]} 48. Kc2 {[%emt 0:00:00]} Nxa4 {[%emt 0:00:00]} 49. Kxb3 {[%emt 0:00:00]} Nc5+ {[%emt 0:00:00]} 50. Kc2 {[%emt 0:00:00]} d3+ {[%emt 0:00:00]} 51. Kd1 {[%emt 0:00:00]} Ne4 {[%emt 0:00:00]} 52. Rb2 {[%emt 0:00:00]} Bc5 {[%emt 0:00:00] aiming for ...Be3.} 53. Rb7+ {[%emt 0:00:00]} Ke6 {[%emt 0:00:00] And now ...Be3 would win.} 54. Rxh7 {[%emt 0:00:00]} Be3 {[%emt 0:00:00]} 55. Rh6+ {[%emt 0:00:00]} Kd7 {[%emt 0:00:00] Weighted Error Value: White=0.61/Black=0.19 (very precise)} 0-1

[Event "93rd German Championship 2022"]
[Site "Magdeburg"]
[Date "2022.08.14"]
[Round "1.7"]
[White "Wachinger, Nikolas"]
[Black "Farokhi, Keyvan"]
[Result "1/2-1/2"]
[ECO "B12"]
[WhiteElo "2437"]
[BlackElo "2332"]
[Annotator "TA"]
[PlyCount "123"]
[EventDate "2022.08.14"]
[EventType "swiss"]
[EventCountry "GER"]
[SourceTitle "playchess.com"]
[Source "ChessBase"]
[SourceQuality "1"]
[TimeControl "40/5400+30:1800+30"]

{[%evp 9,123,16,13,5,0,-8,24,18,27,0,10,7,0,0,0,22,31,18,29,10,13,0,0,0,8,0,0,0,0,0,0,0,2,6,8,7,20,21,35,15,18,7,0,0,0,0,0,0,4,0,0,0,0,0,0,0,0,0,0,0,0,0,0,0,0,0,0,0,0,0,0,0,0,0,0,0,0,0,0,0,0,0,0,0,0,0,0,0,0,0,0,0,0,0,0,0,0,0,0,0,0,0,0,0,0,0,0,0,0,0,0,0,0,0,0,0]} 1. e4 {[%emt 0:00:09]} c6 {[%emt 0:00:07]} 2. d4 {[%emt 0:00:15]} d5 {[%emt 0:00:07]} 3. e5 {[%emt 0:00:09]} c5 {[%emt 0:00:06]} 4. dxc5 {[%emt 0:00:22]} e6 {[%emt 0:00:07]} 5. Be3 {[%emt 0:00:13]} Nd7 {[%emt 0:00:10]} 6. Bb5 {[%emt 0:00:54] B12: Caro-Kann: Advance Variation.} Ne7 {[%emt 0:00:14] 6...Ne7 is better than 6...Qc7.} 7. Bd4 {[%emt 0:00:32]} Nf5 {[%emt 0:18:14]} 8. c3 {[%emt 0:03:57] White has an edge.} a6 {[%emt 0:00:19]} 9. Ba4 {[%emt 0:00:57]} Be7 {[%emt 0:12:28]} 10. Ne2 {[%emt 0:20:42][%cal Bg1e2,Be2f4,Bf4d5][%mdl 32]} O-O {[%emt 0:02:00]} 11. O-O {[%emt 0:01:04] [#]} Qc7 $146 {[%emt 0:07:07]} ({Predecessor:} 11... Nxc5 12. Bc2 Nxd4 13. cxd4 Nd7 14. Nd2 Nb8 15. Nf3 Nc6 16. Rc1 Bd7 17. Nf4 Rc8 {1-0 (30) Kraft,D (2215)-Packroff,H (1924) GER email 2011}) 12. Bc2 {[%emt 0:02:56]} Nxe5 {[%emt 0:06:03]} 13. Bxf5 {[%emt 0:20:05]} exf5 {[%emt 0:00:02]} 14. Nf4 {[%emt 0:03:31]} Ng4 {[%emt 0:08:12]} 15. g3 {[%emt 0:00:35]} Bxc5 {[%emt 0:01:04]} 16. Nxd5 {[%emt 0:26:35]} Qd6 {[%emt 0:02:12]} 17. Bxc5 {[%emt 0:01:48]} Qxc5 {[%emt 0:00:08]} 18. Qd4 {[%emt 0:00:50]} Qxd4 {[%emt 0:06:20]} 19. cxd4 {[%emt 0:00:04]} Rd8 {[%emt 0:05:49]} 20. Nbc3 {[%emt 0:01:08]} b5 {[%emt 0:01:58]} ({Much less strong is} 20... Be6 21. Nb6 $16) 21. f3 {[%emt 0:01:45]} Nh6 {[%emt 0:07:52]} 22. Rad1 {[%emt 0:01:53]} Bb7 {[%emt 0:01:01]} 23. Ne3 {[%emt 0:00:23]} Rd7 {[%emt 0:02:26]} 24. Kf2 {[%emt 0:00:14]} Rad8 {[%emt 0:00:23] The position is equal.} 25. Ne2 {[%emt 0:00:28]} Kf8 {[%emt 0:02:12][%cal Bg8f8,Bf8e7,Be7d6,Bd6c7][%mdl 32]} 26. Rc1 {[%emt 0:01:10]} g6 {[%emt 0:00:57]} 27. Rc5 {[%emt 0:00:41]} Ng8 {[%emt 0:00:48][%cal Bh6g8,Bg8f6,Bf6d7][%mdl 32]} 28. Rfc1 {[%emt 0:04:16]} Nf6 {[%emt 0:02:54]} 29. Rc7 {[%emt 0:00:26]} Ke7 {[%emt 0:02:08]} 30. Rxd7+ {[%emt 0:01:02]} Rxd7 {[%emt 0:00:31]} 31. Rc5 {[%emt 0:00:48]} Kd6 {[%emt 0:01:28]} 32. Nf4 {[%emt 0:00:59]} Rc7 {[%emt 0:01:49]} 33. Nd3 {[%emt 0:01:20]} Nd7 {[%emt 0:01:29]} 34. Rxc7 {[%emt 0:00:08]} Kxc7 $11 {[%emt 0:00:02][%mdl 4096] Endgame KBN-KNN} 35. b4 {[%emt 0:03:03]} Kd6 {[%emt 0:02:48]} 36. a3 {[%emt 0:01:09]} Nb6 {[%emt 0:01:21]} 37. Nc5 {[%emt 0:00:13]} Bc8 {[%emt 0:00:09]} 38. Ke2 {[%emt 0:00:27]} Nd5 {[%emt 0:01:00]} 39. Nxd5 {[%emt 0:00:16]} Kxd5 {[%emt 0:00:02] KB-KN} 40. Kd3 {[%emt 0:00:11]} Kd6 {[%emt 0:01:22]} 41. f4 {[%emt 0:08:14]} Kd5 {[%emt 0:02:31]} 42. a4 {[%emt 0:01:19]} Kd6 {[%emt 0:03:02]} 43. a5 {[%emt 0:12:53]} Kd5 {[%emt 0:00:41]} 44. Nb3 {[%emt 0:05:06]} Kd6 {[%emt 0:02:49]} 45. Nd2 {[%emt 0:00:20]} Bb7 {[%emt 0:00:23]} 46. Nf1 {[%emt 0:00:10]} Be4+ {[%emt 0:00:57]} 47. Kc3 {[%emt 0:00:10]} Bg2 {[%emt 0:04:15]} 48. Ne3 {[%emt 0:01:05]} Bf3 {[%emt 0:00:05]} 49. Kd3 {[%emt 0:00:26]} Be4+ {[%emt 0:00:48]} 50. Ke2 {[%emt 0:00:06]} Ke6 {[%emt 0:00:25]} 51. Kf2 {[%emt 0:00:30]} f6 {[%emt 0:00:44]} 52. h4 {[%emt 0:00:50]} h5 {[%emt 0:01:04]} 53. Ke1 {[%emt 0:00:07]} Kd6 {[%emt 0:00:17]} 54. Kd2 {[%emt 0:00:10]} Ke6 {[%emt 0:00:18]} 55. d5+ {[%emt 0:00:54]} Kd6 {[%emt 0:00:29]} 56. Kc3 {[%emt 0:00:08]} Bxd5 {[%emt 0:00:06]} 57. Kd4 {[%emt 0:00:06]} Be4 {[%emt 0:00:56]} 58. Nf1 {[%emt 0:00:19]} Bd5 {[%emt 0:00:11]} 59. Nd2 {[%emt 0:00:14]} Be6 {[%emt 0:00:18]} 60. Nb1 {[%emt 0:00:18]} Bd5 {[%emt 0:00:24]} 61. Nc3 {[%emt 0:00:05]} Bc4 {[%emt 0:00:12]} 62. Ke3 {[%emt 0:00:06] A balanced but interesting game.  Weighted Error Value: White=0.02 (flawless) /Black=0.02 (flawless)} 1/2-1/2

[Event "93rd German Championship 2022"]
[Site "Magdeburg"]
[Date "2022.08.14"]
[Round "1.8"]
[White "Hourigan, Gerrit"]
[Black "Carlstedt, Jonathan"]
[Result "0-1"]
[ECO "A40"]
[WhiteElo "2306"]
[BlackElo "2446"]
[Annotator "TA"]
[PlyCount "64"]
[EventDate "2022.08.14"]
[EventType "swiss"]
[EventCountry "GER"]
[SourceTitle "playchess.com"]
[Source "ChessBase"]
[SourceQuality "1"]
[TimeControl "40/5400+30:1800+30"]

{[%evp 9,64,-7,26,26,19,21,27,15,24,12,45,41,31,37,6,32,33,-9,-22,0,-25,-30,-21,-70,-67,-70,-75,-70,-63,-125,-128,-143,-127,-177,-170,-190,-176,-182,-182,-190,-172,-283,-252,-252,-252,-364,-370,-695,-689,-6287,-6270,-29992,-29993,-29995,-29996,-29996,-205]} 1. d4 {[%emt 0:00:08]} Nf6 {[%emt 0:00:07]} 2. c4 {[%emt 0:00:09]} e6 {[%emt 0:00:07]} 3. g3 {[%emt 0:00:13]} d5 {[%emt 0:00:07]} 4. Nf3 {[%emt 0:00:06]} Bb4+ {[%emt 0:00:21]} 5. Bd2 {[%emt 0:00:25]} Bd6 {[%emt 0:00:10]} 6. Bg2 {[%emt 0:05:28] E01: Catalan: Early deviations.} O-O {[%emt 0:00:12]} 7. O-O {[%emt 0:01:42]} Nbd7 {[%emt 0:00:09]} 8. Qc2 {[%emt 0:09:07] White has an edge.} (8. c5 $5 {[%cal Rc5d6]} Be7 9. Nc3 $14) 8... c6 {[%emt 0:00:08]} 9. Rd1 {[%emt 0:07:38]} a5 {[%emt 0:07:37] [#]} 10. Nc3 $146 {[%emt 0:08:00]} ({Predecessor:} 10. Bg5 h6 11. Bxf6 Nxf6 12. Nbd2 b5 13. c5 Bc7 14. e4 dxe4 15. Nxe4 Nd5 16. Ne5 {½-½ (25) Livaic,L (2507)-Oparin,G (2652) Chess.com INT 2020}) 10... dxc4 {[%emt 0:13:29]} 11. e4 {[%emt 0:06:01] aiming for e5.} e5 {[%emt 0:04:32]} 12. dxe5 {[%emt 0:08:01]} Bxe5 {[%emt 0:00:40]} 13. Nxe5 {[%emt 0:07:06]} (13. b3 $5 {[%cal Rf3e5]}) 13... Nxe5 {[%emt 0:00:07]} 14. Be3 {[%emt 0:01:05]} Qe7 {[%emt 0:02:54]} 15. h3 {[%emt 0:06:48] Inhibits Bg4.} b5 {[%emt 0:07:02]} 16. f4 {[%emt 0:03:31]} (16. b3 $11) 16... Nd3 $15 {[%emt 0:00:25]} 17. e5 {[%emt 0:01:39]} Nd5 $1 {[%emt 0:04:49]} 18. Nxd5 {[%emt 0:15:07]} ({Much worse is} 18. Bxd5 cxd5 19. Qg2 (19. Nxd5 Qe6 $17) 19... Rb8 20. Qxd5 (20. Nxd5 $2 Qd8 $19) 20... Bb7) 18... cxd5 {[%emt 0:00:41]} 19. a4 {[%emt 0:00:57]} (19. Qe2 $15) 19... Rb8 $17 {[%emt 0:06:44][%cal Ba8b8,Bb8b5,Bb5b2][%mdl 32] Black is more active.} 20. axb5 {[%emt 0:05:19]} Rxb5 {[%emt 0:00:27]} 21. Rxd3 {[%emt 0:02:09]} (21. Qc3 $17) 21... cxd3 $19 {[%emt 0:01:06]} 22. Qxd3 {[%emt 0:01:14]} Rxb2 {[%emt 0:03:09] Hoping for ...Qb4.} 23. Bd4 {[%emt 0:00:44]} Rb4 {[%emt 0:03:07]} 24. Rxa5 {[%emt 0:02:31]} Bf5 {[%emt 0:01:22]} 25. Qe3 {[%emt 0:02:25]} (25. Qxf5 $142 Rxd4 26. Kh2) 25... Rb1+ {[%emt 0:04:45]} 26. Kh2 {[%emt 0:00:20] [#]} Be4 {[%emt 0:03:53]} 27. Bxe4 {[%emt 0:02:01]} (27. Ra7 {was necessary.} Qxa7 28. Bxa7) 27... dxe4 {[%emt 0:00:03]} 28. Qxe4 $2 {[%emt 0:02:58]} (28. Ra7 Qd8 29. e6) 28... Qb4 {[%emt 0:00:25]} 29. Rd5 {[%emt 0:00:51]} Rb2+ {[%emt 0:05:40]} 30. Kh1 {[%emt 0:00:40]} Ra8 {[%emt 0:00:26] Black mates.} 31. Qf3 {[%emt 0:01:02]} Ra1+ {[%emt 0:00:27]} 32. Bg1 {[%emt 0:00:33] [#]} Rxg1+ $1 {[%emt 0:00:24][%mdl 512] Weighted Error Value: White=0.72/Black=0.04 (flawless)} 0-1

[Event "93rd German Championship 2022"]
[Site "Magdeburg"]
[Date "2022.08.14"]
[Round "1.9"]
[White "Krassowizkij, Jaroslaw"]
[Black "Bracker, Arne"]
[Result "1/2-1/2"]
[ECO "E06"]
[WhiteElo "2428"]
[BlackElo "2277"]
[Annotator "TA"]
[PlyCount "81"]
[EventDate "2022.08.14"]
[EventType "swiss"]
[EventCountry "GER"]
[SourceTitle "playchess.com"]
[Source "ChessBase"]
[SourceQuality "1"]
[TimeControl "40/5400+30:1800+30"]

{[%evp 20,81,0,0,0,0,0,0,0,-4,0,-1,0,11,6,0,46,47,115,115,114,113,110,85,81,83,77,76,89,86,85,85,79,82,83,43,42,17,16,0,8,13,86,1,21,21,21,21,27,0,0,0,5,5,28,0,0,0,0,0,0,0,0,0]} 1. d4 {[%emt 0:00:03]} Nf6 {[%emt 0:00:15]} 2. c4 {[%emt 0:00:05]} e6 {[%emt 0:00:11]} 3. Nf3 {[%emt 0:00:12]} d5 {[%emt 0:00:17]} 4. g3 {[%emt 0:00:08]} Be7 {[%emt 0:00:22]} 5. Bg2 {[%emt 0:00:05]} O-O {[%emt 0:00:05]} 6. O-O {[%emt 0:00:04]} dxc4 {[%emt 0:00:25]} 7. Qa4 {[%emt 0:00:07]} a6 {[%emt 0:00:36]} 8. Qxc4 {[%emt 0:00:42]} b5 {[%emt 0:00:26]} 9. Qc2 {[%emt 0:00:04]} Bb7 {[%emt 0:00:14]} 10. Bd2 {[%emt 0:00:04]} Be4 {[%emt 0:00:56]} 11. Qc1 {[%emt 0:00:06]} c6 {[%emt 0:00:41] E05: Open Catalan: 5 Nf3 Be7.} 12. Rd1 {[%emt 0:00:31]} Nbd7 {[%emt 0:06:26]} 13. Nc3 {[%emt 0:01:13]} Bg6 {[%emt 0:00:14]} 14. a3 {[%emt 0:00:16]} Rc8 {[%emt 0:04:46]} 15. Bg5 {[%emt 0:07:44]} Nd5 {[%emt 0:07:10]} 16. Bxe7 {[%emt 0:04:48]} Qxe7 {[%emt 0:00:23] [#]} 17. Qd2 $146 {[%emt 0:12:46]} ({Predecessor:} 17. Ne5 Nxe5 18. dxe5 Qc7 19. f4 Qb6+ 20. Kh1 Ne3 21. Rd6 Nc4 22. Rd7 Rfd8 23. Rxd8+ Rxd8 {½-½ (63) Schulz,D (2091)-Nyenhuis,Y (1951) Lueneburg 2019}) 17... Nxc3 {[%emt 0:16:23]} (17... N5b6 $11) 18. Qxc3 $14 {[%emt 0:00:14]} c5 {[%emt 0:03:07]} (18... Be4 $14) 19. dxc5 $16 {[%emt 0:25:27]} Nxc5 {[%emt 0:01:18]} 20. Rac1 {[%emt 0:00:44] [#] Threatens to win with b4.} Qb7 {[%emt 0:17:03][%cal Oc5d3]} 21. Qe5 {[%emt 0:22:07]} Nd7 {[%emt 0:23:03]} 22. Qd6 {[%emt 0:07:23]} Nf6 {[%emt 0:00:29]} 23. Ne5 {[%emt 0:03:37]} Be4 {[%emt 0:02:08]} 24. Rxc8 {[%emt 0:08:47]} Qxc8 {[%emt 0:00:01]} 25. Nd7 {[%emt 0:00:39]} Nxd7 {[%emt 0:07:26]} 26. Bxe4 {[%emt 0:00:04]} Nc5 {[%emt 0:00:25]} 27. Bc6 {[%emt 0:02:40] 0x0.0020ae332109dp-1022s more active pieces.} Nb7 {[%emt 0:02:20]} 28. Qd7 {[%emt 0:01:07]} (28. Bxb7 $5 Qxb7 29. Rc1 $14) 28... Na5 {[%emt 0:02:41]} 29. Bf3 {[%emt 0:01:38]} (29. Be4 {keeps more tension.} g6 30. Qd2 Qc7 31. Qd6) 29... Qxd7 {[%emt 0:01:12]} 30. Rxd7 $11 {[%emt 0:00:02][%mdl 4096] Endgame KRB-KRN} Nc4 {[%emt 0:00:15] [#] Inhibits Rd6.} (30... g6 $11) 31. Ra7 {[%emt 0:01:33]} ({Better is} 31. Bb7 $1 $16 {[%cal Rb7a6]}) 31... Rb8 {[%emt 0:02:04]} 32. b3 {[%emt 0:00:47]} Nxa3 {[%emt 0:01:34]} 33. Be4 {[%emt 0:00:22]} f5 {[%emt 0:00:41]} 34. Bd3 {[%emt 0:00:15][%mdl 1024] White has compensation.} Rb6 {[%emt 0:00:09]} 35. Kf1 {[%emt 0:00:35]} Rd6 {[%emt 0:01:01][%cal Oa3b1]} 36. Ke1 {[%emt 0:00:39]} g5 {[%emt 0:00:21]} 37. f4 {[%emt 0:00:25]} g4 {[%emt 0:00:13] The position is equal.} 38. Kf2 {[%emt 0:00:47]} h5 {[%emt 0:00:24]} 39. Ke3 {[%emt 0:00:31]} Kh8 {[%emt 0:00:32]} 40. Kf2 {[%emt 0:00:16]} Kg8 {[%emt 0:00:21]} 41. Ke3 {[%emt 0:30:05] Weighted Error Value: White=0.11 (very precise) /Black=0.10 (very precise)} 1/2-1/2

[Event "93rd German Championship 2022"]
[Site "Magdeburg"]
[Date "2022.08.14"]
[Round "1.10"]
[White "Cofmann, Veaceslav"]
[Black "Krastev, Alexander"]
[Result "0-1"]
[ECO "D02"]
[WhiteElo "2301"]
[BlackElo "2435"]
[Annotator "TA"]
[PlyCount "80"]
[EventDate "2022.08.14"]
[EventType "swiss"]
[EventCountry "GER"]
[SourceTitle "playchess.com"]
[Source "ChessBase"]
[SourceQuality "1"]
[TimeControl "40/5400+30:1800+30"]

{[%evp 11,80,-7,19,20,22,0,-8,-6,-5,0,-3,-2,0,-2,16,-17,-18,-31,-23,-26,-14,-27,-17,-28,0,-6,0,-22,22,-50,35,12,0,-189,-179,-178,-182,-225,-210,-328,-321,-437,-436,-408,-425,-491,-475,-534,-530,-512,-530,-530,-516,-587,-589,-579,-577,-564,-582,-580,-568,-704,-694,-754,-713,-1182,-1172,-29967,-6477,-29979,-6319]} 1. d4 {[%emt 0:00:22]} d5 {[%emt 0:00:13]} 2. Nf3 {[%emt 0:00:53]} Nf6 {[%emt 0:01:02]} 3. Bf4 {[%emt 0:01:13]} e6 {[%emt 0:01:02]} 4. e3 {[%emt 0:00:29]} c5 {[%emt 0:00:12]} 5. c3 {[%emt 0:00:21]} Nc6 {[%emt 0:00:08]} 6. Nbd2 {[%emt 0:00:07]} cxd4 {[%emt 0:00:45]} 7. exd4 {[%emt 0:01:53] D02: 1 d4 d5 2 Nf3 sidelines, including 2...Nf6 3 g3 and 2...Nf6 3 Bf4.} Nh5 {[%emt 0:00:24]} 8. Bg3 {[%emt 0:01:19]} g6 {[%emt 0:01:23]} 9. Bd3 {[%emt 0:01:44] The position is equal.} Bg7 {[%emt 0:00:11]} 10. O-O {[%emt 0:01:29]} Nxg3 {[%emt 0:01:50]} 11. hxg3 {[%emt 0:00:13]} O-O {[%emt 0:00:06]} 12. Re1 {[%emt 0:01:08]} Bd7 {[%emt 0:03:53] [#]} 13. b4 $146 {[%emt 0:09:46]} ({Predecessor:} 13. Nf1 Rb8 14. g4 b5 15. a3 a5 16. Qd2 b4 17. axb4 axb4 18. g5 bxc3 19. bxc3 {1-0 (43) Le,T (2501)-Adhiban,B (2659) Chess.com INT 2020}) 13... Rc8 {[%emt 0:21:52]} 14. Nb3 {[%emt 0:04:27]} b6 {[%emt 0:00:38]} 15. Qd2 {[%emt 0:00:34]} Re8 {[%emt 0:05:35]} 16. b5 {[%emt 0:00:29]} Ne7 {[%emt 0:00:49]} 17. g4 {[%emt 0:00:50] Prevents Nf5.} Rc7 {[%emt 0:06:32]} 18. Rac1 {[%emt 0:05:59]} Nc8 {[%emt 0:14:10]} 19. Qf4 {[%emt 0:01:22] Inhibits Nd6.} Rf8 {[%emt 0:00:55]} 20. Ne5 {[%emt 0:03:02]} (20. g5 $11) 20... f6 {[%emt 0:09:18]} ({Black should play} 20... Nd6 $15 21. a4 Nc4) 21. Nxd7 $14 {[%emt 0:01:26]} Qxd7 {[%emt 0:00:13]} 22. Rxe6 $2 {[%emt 0:00:20] [#]} Bh6 $1 $36 {[%emt 0:00:41][%mdl 2048] Black is on the roll.} 23. Qxh6 {[%emt 0:03:49]} ({But not} 23. g5 $2 Bxg5 24. Qg3 Qxe6 $19) 23... Qxe6 {[%emt 0:00:32]} 24. Nd2 {[%emt 0:02:37]} Qxg4 {[%emt 0:01:46]} 25. Nf3 {[%emt 0:00:53]} (25. Qh2 {is a better defense.} Qd7 26. Nf1) 25... Nd6 {[%emt 0:01:12]} 26. Nh2 {[%emt 0:03:08]} Qg5 {[%emt 0:11:06]} 27. Qxg5 {[%emt 0:00:11]} fxg5 {[%emt 0:00:01]} 28. Nf3 {[%emt 0:01:09]} Rfc8 {[%emt 0:01:00]} 29. Re1 {[%emt 0:01:23]} Rxc3 {[%emt 0:00:53]} 30. Re6 {[%emt 0:00:21]} Nf7 {[%emt 0:01:25]} 31. Be2 {[%emt 0:00:26]} Kf8 {[%emt 0:01:24]} 32. Kf1 {[%emt 0:00:55]} Rc1+ {[%emt 0:02:51]} 33. Ne1 {[%emt 0:00:10]} Re8 {[%emt 0:00:17]} 34. Rxe8+ {[%emt 0:00:30]} Kxe8 {[%emt 0:00:02][%mdl 4096] Endgame KRN-KBN} 35. Bf3 {[%emt 0:00:07]} Nd6 {[%emt 0:00:43]} 36. a4 {[%emt 0:01:05]} Nf5 {[%emt 0:00:37]} 37. Ke2 {[%emt 0:03:09]} Nxd4+ {[%emt 0:00:11]} 38. Kd2 {[%emt 0:00:03] [#]} Rxe1 $1 {[%emt 0:00:16]} 39. Kxe1 {[%emt 0:00:08]} (39. Bxd5 Ra1) 39... Nxf3+ {[%emt 0:00:04]} 40. gxf3 {[%emt 0:00:04]} h5 {[%emt 0:00:16] Weighted Error Value: White=0.42/Black=0.10 (very precise)} 0-1